Cogmind - Beta 13 @@@ ROGUE MODE // 2024.04.12 @ 16:03:32 Player: monkeman Result: Destroyed by VF-UYM(R) with Subdweller Laser Performance ------------- Evolutions (0) 0 Regions Visited (2) 400 Robots Destroyed (22) 110 Value Destroyed (698) 698 Prototype IDs (1) 20 Alien Tech Used (0) 0 Bonus (0) 0 TOTAL SCORE: 1228 Bonus ------- None Cogmind --------- Core Integrity 0/250 Matter 253/300 Energy 100/100 System Corruption 0% Temperature Cool (6) Movement Walking (190) Ox1 Location -10/Subcaves Parts ------- > --- POWER (1) -------- (None) > --- PROPULSION (2) --- Aluminum Leg > --- UTILITY (2) ------ Medium Storage Unit Light Armor Plating > --- WEAPON (2) ------- Improved Assault Rifle Light Cannon > --- INVENTORY (10) --- Aluminum Leg Wheel Wheel Heat Sink Disposable Heat Sink Hacking Suite Heavy EM Pulse Gun Heavy EM Pulse Gun Improved Assault Rifle Improved Assault Rifle Peak State ------------ > --- POWER ------------ Ion Engine > --- PROPULSION ------- Aluminum Leg Aluminum Leg > --- UTILITY ---------- Medium Storage Unit Signal Interpreter > --- WEAPON ----------- Particle Gun Improved Assault Rifle > --- INVENTORY -------- Ion Engine Aluminum Leg Aluminum Leg Wheel Wheel Heat Sink Small Storage Unit Structural Scanner Hacking Suite [Rating: 11] Favorites ----------- Power Ion Engine Engine Ion Engine Propulsion Aluminum Leg Leg Aluminum Leg Wheel Wheel Utility Medium Storage Unit Device Heat Sink Storage Medium Storage Unit Processor Signal Interpreter Protection Light Armor Plating Weapon Light Assault Rifle Energy Gun EM Pulse Gun Ballistic Gun Light Assault Rifle Ballistic Cannon Light Cannon Build | -11 -10 -10 ------- Run | Yrd Mat Sub Slots Evolved . | . . . Power . | . . . Propulsion . | . . . Utility . | . . . Weapon . | . . . Parts Attached 25 | 6 15 4 Power 4 | 1 2 1 Engine 4 | 1 2 1 Core . | . . . Reactor . | . . . Propulsion 6 | 2 4 . Treads . | . . . Leg 5 | 2 3 . Wheel 1 | . 1 . Hover . | . . . Flight . | . . . Utility 5 | 1 3 1 Device 1 | . 1 . Storage 2 | 1 1 . Processor 1 | . 1 . Hackware . | . . . Protection 1 | . . 1 Artifact . | . . . Weapon 10 | 2 6 2 Energy Gun 4 | 1 3 . Energy Cannon . | . . . Ballistic Gun 5 | 1 3 1 Ballistic Cannon 1 | . . 1 Launcher . | . . . Special Weapon . | . . . Impact Weapon . | . . . Slashing Weapon . | . . . Piercing Weapon . | . . . Special Melee Weapon . | . . . Unidentified Prototypes 1 | . 1 . Parts Lost 11 | . 8 3 Power 4 | . 2 2 Propulsion 3 | . 2 1 Utility . | . . . Weapon 4 | . 4 . Highest Loss Streak 6 | . 6 1 To Critical Strikes . | . . . Average Slot Usage (%) 92 | . 94 88 Engine 10 | . 13 3 Leg 27 | . 27 27 Device 2 | . 1 4 Storage 14 | . 14 14 Processor 8 | . 12 . Protection 3 | . . 9 Energy Gun 11 | . 13 5 Ballistic Gun 11 | . 10 11 Ballistic Cannon 3 | . . 10 Naked Turns . | . . . Heaviest Build 22 | 13 22 22 Greatest Support 20 | 20 20 20 Greatest Overweight (x) 2 | 2 2 1 Average Overweight (x) . | . . . Largest Inventory Capacity 10 | 8 10 10 Average Capacity 9 | 6 9 10 Most Carried 10 | 6 10 10 Average Carried 8 | 4 8 9 Final Capacity 10 | 8 10 10 Final Carried 10 | 6 9 10 Class Distribution -------------------- 63% | Mutant 36% | Scavenger-Mutant Dominant Class ---------------- Scavenger-Mutant | -10/Materials Mutant | -10/Subcaves Resources | -11 -10 -10 ----------- Run | Yrd Mat Sub Matter Collected 613 | 197 225 191 Remotely . | . . . Salvage Created 812 | . 609 203 Parts 44 | . 32 12 Haulers Intercepted 1 | . 1 . Recyclers Shooed 1 | . 1 . Parts Field Recycled . | . . . Retrieved Matter . | . . . Parts Self-Destructed 7 | . . 7 Prevented . | . . . Kills | -11 -10 -10 ------- Run | Yrd Mat Sub Combat Hostiles Destroyed 19 | . 14 5 Guns 15 | . 12 3 Cannons 1 | . . 1 AOE 2 | . 1 1 Classes Destroyed 6 | . 5 1 Hauler 1 | . 1 . Operator 1 | . 1 . Watcher 1 | . 1 . Swarmer 2 | . 2 . Grunt 12 | . 12 . Subdweller 5 | . . 5 Best Kill Streak 3 | . 3 1 Combat Bots Only 3 | . 3 1 Max Kills in Single Turn 1 | . 1 1 Gunslinging . | . . . Exploded 1 | . 1 1 Melee . | . . . Uniques/NPCs Destroyed . | . . . Combat | -11 -10 -10 -------- Run | Yrd Mat Sub Hostile Shots Fired 138 | . 105 33 Missed 38 | . 28 10 Damage Taken 1475 | . 977 498 Core 251 | . 163 88 Absorbed by Shields . | . . . Core Remaining (%) 100 | 100 . . Volleys Fired 130 | . 92 38 Largest 2 | . 2 2 Hottest 85 | . 85 80 Shots Fired 223 | . 152 71 Gun 191 | . 152 39 Cannon 32 | . . 32 Launcher . | . . . Special . | . . . Kinetic 116 | . 61 55 Thermal 44 | . 44 . Explosive . | . . . Electromagnetic 63 | . 47 16 Robot Hit Streak 14 | . 14 12 Robot Miss Streak 5 | . 5 2 Penetration Max . | . . . Secondary Targets 1 | . 1 . Max Gunslinging Chain 1 | . 1 . Shots Hit Robots 137 | . 94 43 Core Hits 40 | . 30 10 Critical Kills . | . . . Critical Parts Destroyed . | . . . Critical Strikes 4 | . 3 1 Burn 2 | . 2 . Corrupt 2 | . 1 1 Melee Attacks . | . . . Impact . | . . . Slashing . | . . . Piercing . | . . . Sneak Attacks . | . . . Combat Hostiles . | . . . Follow-up Attacks . | . . . Damage Inflicted 1774 | . 1226 548 Guns 1434 | . 1163 271 Cannons 220 | . . 220 Explosions 106 | . 49 57 Melee . | . . . Ramming 14 | . 14 . Kinetic 740 | . 379 361 Thermal 547 | . 490 57 Explosive . | . . . Electromagnetic 473 | . 343 130 Impact . | . . . Slashing . | . . . Piercing . | . . . Highest Corruption . | . . . Average Corruption . | . . . Corruption Purged . | . . . Corruption Blocked . | . . . Overload Shots . | . . . Overflow Damage . | . . . Projectiles . | . . . Explosions . | . . . Melee . | . . . Knockbacks 1 | . . 1 Impact . | . . . Kinetic 1 | . . 1 Secondary . | . . . Self-Inflicted Damage 48 | . 48 . Shots 1 | . 1 . Rammed . | . . . Targets Rammed 4 | . 4 . Kicked 4 | . 4 . Crushed . | . . . Highest Temperature 373 | . 373 . Average Temperature 80 | . 80 . Received Heat Transfer 570 | . 495 75 Effects 1 | . 1 . Energy Bleed 1 | . 1 . Siege Activations . | . . . Robots Corrupted . | . . . Combat Hostiles . | . . . Parts Fried . | . . . Impact Corruptions . | . . . Robots Melted 1 | . 1 . Combat Hostiles 1 | . 1 . Parts Melted 1 | . 1 . Heat Transferred 1284 | . 1234 50 Parts Sabotaged . | . . . Parts Stolen . | . . . Parts Stripped . | . . . Power Chain Reactions 2 | . 1 1 Alert | -11 -10 -10 ------- Run | Yrd Mat Sub Peak Influence 233 | . 233 . Initial . | . . . Average 102 | . 108 . Maximum Alert Level 1 | . 1 . Low Security (%) 90 | 100 90 . Level 1 9 | . 9 . Level 2 . | . . . Level 3 . | . . . Level 4 . | . . . Level 5 . | . . . High Security . | . . . Max Security . | . . . Squads Dispatched 5 | . 5 . Investigation 4 | . 4 . Extermination . | . . . Reinforcement 1 | . 1 . Assault . | . . . Garrison . | . . . Intercept . | . . . Searches Triggered . | . . . Construction Impeded . | . . . Haulers Reinforced . | . . . Active Scanning Responses . | . . . Cargo Convoy Interrupts . | . . . Stealth | -11 -10 -10 --------- Run | Yrd Mat Sub Distress Signals 2 | . 2 . Communications Jammed . | . . . Distress Signals . | . . . Times Spotted 35 | . 27 8 Peak Tracking Total 4 | . 4 2 Tactical Retreats 1 | . 1 . Traps | -11 -10 -10 ------- Run | Yrd Mat Sub Traps Triggered 3 | . 3 . Indirectly . | . . . Trap Hack Attempts . | . . . Triggered . | . . . Disarmed . | . . . Reprogrammed . | . . . Reused . | . . . Traps Extracted . | . . . Installed . | . . . Triggered . | . . . Machines | -11 -10 -10 ---------- Run | Yrd Mat Sub Machines Disabled 1 | . 1 . Max in Single Turn 1 | . 1 . Machines Repaired . | . . . Machines Dismantled . | . . . Machines Sabotaged . | . . . Overloaded Fab Kills . | . . . Hacking | -11 -10 -10 --------- Run | Yrd Mat Sub Machines Accessed 6 | . 6 . Terminals 5 | . 5 . Fabricators . | . . . Repair Stations . | . . . Recycling Units 1 | . 1 . Scanalyzers . | . . . Garrison Access . | . . . Total Hacks 14 | . 14 . Successful 6 | . 6 . Failed 8 | . 8 . Catastrophic 1 | . 1 . Database Lockouts . | . . . Manual 4 | . 4 . Terminals 13 | . 13 . Fabricators . | . . . Repair Stations . | . . . Recycling Units 1 | . 1 . Scanalyzers . | . . . Garrison Access . | . . . Terminal Hacks 4 | . 4 . Level Access Points 1 | . 1 . Branch Access Points 1 | . 1 . Recall Investigation 1 | . 1 . Hauler Manifests 1 | . 1 . Fabricator Hacks . | . . . Repair Station Hacks . | . . . Recycling Unit Hacks 1 | . 1 . Retrieve Components 1 | . 1 . Scanalyzer . | . . . Garrison Access Hacks . | . . . Unauthorized Hacks 1 | . 1 . Terminals 1 | . 1 . Botnet 1 | . 1 . Fabricators . | . . . Repair Stations . | . . . Recycling Units . | . . . Scanalyzers . | . . . Garrison Access . | . . . Data Cores Recovered 1 | . 1 . Used 1 | . 1 . Hacking Detections 4 | . 4 . Full Trace Events 2 | . 2 . Feedback Events . | . . . Feedback Blocked . | . . . Robot Schematics Acquired . | . . . Robots Built . | . . . Authchips . | . . . Time . | . . . Total Robot Build Rating . | . . . Part Schematics Acquired . | . . . Parts Built . | . . . Authchips . | . . . Time . | . . . Total Part Build Rating . | . . . Parts Repaired . | . . . Time . | . . . Parts Recycled . | . . . Recycled Matter . | . . . Retrieved Matter . | . . . Retrieved Components 10 | . 10 . Parts Scanalyzed . | . . . Part Schematics Acquired . | . . . Parts Damaged . | . . . Bothacking | -11 -10 -10 ------------ Run | Yrd Mat Sub Used RIF Installer . | . . . Robots Hacked . | . . . Non-combat . | . . . Combat . | . . . Robot Hacks Applied . | . . . Relay Couplers Released . | . . . Fabnet Peak Effective % . | . . . Robots Rewired . | . . . Allies Hacked . | . . . Hacks Repelled . | . . . Allies | -11 -10 -10 -------- Run | Yrd Mat Sub Total Allies . | . . . Largest Group . | . . . Highest-Rated Group . | . . . Highest-Rated Ally . | . . . Total Orders . | . . . Ally Attacks . | . . . Total Damage . | . . . Kills . | . . . Allies Corrupted . | . . . Allies Melted . | . . . Intel | -11 -10 -10 ------- Run | Yrd Mat Sub Robot Analysis Total . | . . . Derelict Logs Recovered . | . . . Drone Launches . | . . . Drone Recoveries . | . . . Exploration | -11 -10 -10 ------------- Run | Yrd Mat Sub Turns Passed 1829 | 61 1221 547 Spaces Moved 1021 | 41 668 312 Core 17 | 17 . . Treads . | . . . Legs 992 | 24 656 312 Wheels 12 | . 12 . Hover . | . . . Flight . | . . . Fastest Speed 50 | 50 95 120 Average Speed 132 | 114 133 132 Slowest Speed 260 | 150 260 190 Overloaded Moves . | . . . Propulsion Burnouts . | . . . Robots Hopped . | . . . Cave-ins Triggered . | . . . Exploration Rate (%) 33 | 4 83 13 Regions Visited 2 Branch Regions 1 Pre-discovered Areas . | . . . Known Exits Taken . | . . . Unknown Exits Taken 2 | 1 1 . Scrap Searched . | . . . Spaces Dug . | . . . Terrain Destroyed 10 | . 4 6 Melee . | . . . Projectile . | . . . AOE 10 | . 4 6 Terrain Rammed . | . . . Walls Destroyed . | . . . Machines Disabled . | . . . Actions | -11 -10 -10 --------- Run | Yrd Mat Sub Total 1286 | 52 860 374 Wait 76 | . 58 18 Move 1019 | 40 667 312 Hop . | . . . Pick Up 23 | 6 15 2 Fast Attach 11 | 6 5 . Attach 9 | . 8 1 Detach . | . . . Swap 5 | . 2 3 Drop 9 | . 9 . Fire 130 | . 92 38 Melee . | . . . Ram . | . . . Kick 4 | . 4 . Crush . | . . . Escape Stasis . | . . . Rewire . | . . . Trap . | . . . Miscellaneous . | . . . Route ------- -11/Scrapyard -10/Materials (discovered 5 exits: *Mat x3 / *Min / [*Sub]) -10/Subcaves History --------- Turn | Location | Event 21 | -11/Scrapyard | Discovered new exit (range 14) 62 | -11/Scrapyard | Entered Materials 234 | -10/Materials | Identified exit to Materials 304 | -10/Materials | Identified exit to Mines 338 | -10/Materials | Build established: Mutant 669 | -10/Materials | Lost 6 parts (2p2n2w) 745 | -10/Materials | Core integrity fell below 50% 955 | -10/Materials | Build established: Scavenger-Mutant 1272 | -10/Materials | Discovered new exit (range 7) 1283 | -10/Materials | Entered Subcaves 1326 | -10/Subcaves | Core integrity fell below 20% 1615 | -10/Subcaves | Build established: Mutant 1830 | -10/Subcaves | Destroyed by VF-UYM(R) with Subdweller Laser Last Messages --------------- 01449_ Acquired 4 matter. 01450_ Acquired 7 matter. 01453_ Acquired Disposable Heat Sink. 01471_ Acquired 4 matter. 01560_ B5-SUT(u) builds Twisted Machinery. 01585_ B5-SUT(u) tweaks Twisted Machinery. 01622_ Acquired 16 matter. 01623_ Acquired 12 matter. 01634_ Acquired 26 matter. 01638_ Subatomizers dissect the Corrupted Disposable Heat Sink. 01761_ XF-V0Q(R) destroyed. 01764_ Acquired 18 matter. 01788_ 01-NSN(R) knocked back. 01794_ 01-NSN(R) destroyed. 01811_ Subatomizers dissect the Sub. Monowheel. 01811_ Acquired 23 matter. 01812_ Acquired 2 matter. 01822_ Subatomizers dissect the Sub. Monowheel. 01822_ Aluminum Leg destroyed. Map ----- +----------------------------------------------------+ | ?????????????????????????????????????????????? | | ?????????????????????????????????????????????? | | ?????????????????????????????????????????????? | | ?????????????????????????????????????????????? | | ?????????????????????????????????????????????? | | ?????????????????????????????????????????????? | | ?????????????????????????????????????????????? | | ?????????????????????????????????????????????? | | ?????????????????????????????????????????????? | | ?????????????????????????????????????????????? | | ?????????????????????????????????????????????? | | ?????????????????????????????????????????????? | | ?????????????????????????????????????????????? | | ?????????????????????????????????????????????? | | ???????????????????????????????????#?????????? | | ?????????????????????????????????? #????????? | | ????????????????????????????????? #?????????? | | ???????????????????????????????? ##????????? | | ?????????????????????????????## #????????? | | ????????????????###??####???" ##???????? | | ????????????????? "## #### ???????? | | ??????????????????# # # ??????? | | ??????????????????# % ???????? | | ????????????????????#R % " #????????? | | ????????????????????# %%## ## #????????? | | ??????????????????###@ ! #??????????????????? | | ?????????????????## # ##??????????????????? | | ????????????????##= ### #???????????????????? | | ????????????????#% !##?# #???????????????????? | | ????????????????# #??# ##??????????????????? | | ????????????????## #### #??????????????????? | | ????????????????# ### ##?????????????????? | | ????????????????## #?## ##????????????????? | | ?????????????????## #??# ##???????????????? | | ??????????????????### #?### #???????????????? | | ????????????????????#######"##???????????????? | | ????????????????????????# ##????????????????? | | ????????????????????????## ##????????????????? | | ?????????????????????????## ##???????????????? | | ??????????????????????????## ##??????????????? | | ??????????????????????????# # #??????????????? | | ??????????????????????????## ##?????????????? | | ???????????????????????????### #?????????????? | | ????????????????????????????# %#?????????????? | | ????????????????????????????## #?????????????? | | ????????????????????????##??## #?????????????? | | ????????????????????????# ### ##?###?????????? | | ?????????????????????????# ##### ### ###?? | | ???????????????####?###### # # | | ??????????????## ### ### ## | +----------------------------------------------------+ Best States ------------- Heat Dissipation 35 Energy Generation 10 Energy Capacity 250 Matter Stores 300 Matter Capacity 300 Sight Range 16 Terrain Scan Density 10 Armor Coverage 150 Evasion (%) 55 Item Schematics ----------------- None Robot Schematics ------------------ None Fabricated ------------ Nothing Alien Tech Used ----------------- None Achievements -------------- None Challenges ------------ None Game ------ Seed GreatMagneticScrap Manual? 0 Play Time 00:13:24 Cumulative 25.9 hours Start 2024.04.12 @ 15:49:47 End 2024.04.12 @ 16:03:32 Sessions 1 Manual Loads 0 Difficulty Rogue Special Mode None Game No. 29 Rogue 29 Adventurer 0 Explorer 0 Win Type - Total 1 Types 1/0/0/0/0/0/0/0/0 Lore% 15 Gallery% 31 Achievement% 25 Wizard Run 0 Options --------- Layout 1 ASCII 0 Keyboard 0 Movement Mouse Keybinds 0 Fullscreen 1 Font 24/Smallcaps Map View 50x35 Zoom Use 0% Tactical HUD 1 Map Filters NONE Filters NONE Steam 1 RUN: 2e98b110-7acc-476d-af17-776539ce7649